Cogmind - Beta 14 @@@ ROGUE MODE // 2024.10.20 @ 19:43:21 Player: Gabe+Kate4EVR Result: Destroyed by G-47 Trooper with Particle Gun Performance ------------- Evolutions (2) 1000 Regions Visited (3) 600 Robots Destroyed (41) 205 Value Destroyed (1107) 1107 Prototype IDs (0) 0 Alien Tech Used (0) 0 Bonus (94) 94 TOTAL SCORE: 3006 Bonus ------- High Alert Combat Kills 94 Cogmind --------- Core Integrity 0/550 Matter 71/300 Energy 23/100 System Corruption 0% Temperature Cool (18) Movement Walking (90) Location -8/Materials Parts ------- > --- POWER (1) -------- (None) > --- PROPULSION (4) --- Titanium Leg VSS Leg > --- UTILITY (3) ------ (None) > --- WEAPON (3) ------- (None) > --- INVENTORY (5) ---- Large Storage Unit Improved Sensor Array Heavy Armor Plating Heavy Mace Peak State ------------ > --- POWER ------------ Improved Ion Engine > --- PROPULSION ------- Armored Huge Wheel Armored Huge Wheel > --- UTILITY ---------- Large Storage Unit Hardened Medium Armor Plating Improved Field Recycling Unit > --- WEAPON ----------- Particle Gun Particle Gun Particle Gun > --- INVENTORY -------- Ion Engine Titanium Leg VSS Leg Armored Huge Wheel Armored Huge Wheel Large Storage Unit Improved Sensor Array Heavy Armor Plating Heavy Particle Cannon Autogun Heavy Mace [Rating: 36] Favorites ----------- Power Improved Ion Engine Engine Improved Ion Engine Power Core Light Nuclear Core Propulsion Improved Treads Treads Improved Treads Leg Aluminum Leg Wheel Armored Huge Wheel Flight Unit Flight Unit Utility Improved Heat Sink Device Improved Heat Sink Storage Small Storage Unit Hackware System Shield Protection Hardened Medium Armor Plating Weapon Improved Light Cannon Energy Gun Particle Gun Energy Cannon Heavy Particle Cannon Ballistic Gun Assault Rifle Ballistic Cannon Improved Light Cannon Build | -11 -10 -9 -8 ------- Run | Yrd Mat Mat Mat Slots Evolved 4 | . . 2 2 Power . | . . . . Propulsion 2 | . . 2 . Utility 1 | . . . 1 Weapon 1 | . . . 1 Parts Attached 57 | 7 7 22 21 Power 4 | 1 1 1 1 Engine 3 | 1 . 1 1 Core 1 | . 1 . . Reactor . | . . . . Propulsion 28 | 2 4 16 6 Treads 4 | . . 4 . Leg 19 | 2 4 11 2 Wheel 4 | . . . 4 Hover . | . . . . Flight 1 | . . 1 . Utility 7 | 1 1 1 4 Device 3 | . 1 1 1 Storage 2 | 1 . . 1 Processor . | . . . . Hackware 1 | . . . 1 Protection 1 | . . . 1 Artifact . | . . . . Weapon 18 | 3 1 4 10 Energy Gun 6 | 1 1 . 4 Energy Cannon 1 | . . . 1 Ballistic Gun 4 | 2 . 1 1 Ballistic Cannon 7 | . . 3 4 Launcher . | . . . . Special Weapon . | . . . . Impact Weapon . | . . . . Slashing Weapon . | . . . . Piercing Weapon . | . . . . Special Melee Weapon . | . . . . Unidentified Prototypes . | . . . . Parts Lost 12 | . . . 12 Power 2 | . . . 2 Propulsion 2 | . . . 2 Utility 3 | . . . 3 Weapon 5 | . . . 5 Highest Loss Streak 6 | . . . 6 To Critical Strikes . | . . . . Average Slot Usage (%) 87 | . 94 97 72 Engine 5 | . 5 3 8 Core 4 | . 9 7 . Treads 9 | . . 17 2 Leg 15 | . 28 22 1 Wheel 5 | . . . 15 Device 9 | . 9 11 8 Storage 10 | . 14 11 9 Protection 1 | . . . 4 Energy Gun 3 | . 5 . 6 Ballistic Gun 6 | . 23 4 . Ballistic Cannon 13 | . . 16 14 Peak Build Rating 36 | 6 11 20 36 Average Rating 20 | 4 9 17 30 On Entrance 9 | . 6 11 19 Naked Turns . | . . . . Heaviest Build 51 | 14 15 21 51 Greatest Support 92 | 20 20 92 92 Greatest Overweight (x) 4 | . . 4 1 Average Overweight (x) . | . . . . Largest Inventory Capacity 15 | 8 8 8 15 Average Capacity 10 | 6 8 8 13 Most Carried 15 | 2 8 8 15 Average Carried 8 | . 5 7 12 Final Capacity 8 | 8 8 8 5 Final Carried 8 | 2 8 8 5 Class Distribution -------------------- 56% | Mutant 18% | Scavenger-Mutant 15% | Tank 10% | Gunner Dominant Class ---------------- Scavenger-Mutant | -10/Materials Mutant | -9/Materials Tank | -8/Materials Resources | -11 -10 -9 -8 ----------- Run | Yrd Mat Mat Mat Matter Collected 1502 | 119 261 805 317 Remotely . | . . . . Salvage Created 1175 | . 298 636 241 Parts 75 | . 17 44 14 Haulers Intercepted 3 | . . 2 1 Recyclers Shooed 3 | . . 3 . Parts Field Recycled . | . . . . Retrieved Matter . | . . . . Parts Self-Destructed . | . . . . Prevented . | . . . . Kills | -11 -10 -9 -8 ------- Run | Yrd Mat Mat Mat Combat Hostiles Destroyed 32 | . 6 18 8 Guns 11 | . 6 3 2 Cannons 19 | . . 14 5 AOE 1 | . . 1 . Classes Destroyed 9 | . 2 6 1 Builder 1 | . 1 . . Hauler 3 | . . 2 1 Recycler 2 | . . 2 . Operator 1 | . . . 1 Watcher 2 | . . 2 . Swarmer 10 | . . 7 3 Grunt 14 | . 6 6 2 Duelist 1 | . . 1 . Sentry 7 | . . 4 3 Best Kill Streak 9 | . 4 9 4 Combat Bots Only 7 | . 4 7 3 Max Kills in Single Turn 2 | . 2 2 1 Gunslinging . | . . . . Exploded 1 | . . 1 . Melee . | . . . . Uniques/NPCs Destroyed . | . . . . Combat | -11 -10 -9 -8 -------- Run | Yrd Mat Mat Mat Hostile Shots Fired 282 | . 37 104 141 Missed 71 | . 11 33 27 Damage Taken 3279 | . 318 984 1977 Core 737 | . 44 135 558 Absorbed by Shields . | . . . . Core Remaining (%) 82 | 100 82 66 . Volleys Fired 136 | . 24 67 45 Largest 3 | . 2 2 3 Hottest 195 | . 40 78 195 Shots Fired 283 | . 48 134 101 Gun 133 | . 48 41 44 Cannon 150 | . . 93 57 Launcher . | . . . . Special . | . . . . Kinetic 248 | . 48 134 66 Thermal 35 | . . . 35 Explosive . | . . . . Electromagnetic . | . . . . Robot Hit Streak 16 | . 10 16 13 Robot Miss Streak 6 | . 3 6 3 Penetration Max . | . . . . Secondary Targets . | . . . . Shots Hit Robots 174 | . 29 80 65 Core Hits 62 | . 15 29 18 Critical Kills . | . . . . Critical Parts Destroyed 1 | . . 1 . Critical Strikes 3 | . . 3 . Destroy 1 | . . 1 . Blast 2 | . . 2 . Melee Attacks . | . . . . Impact . | . . . . Slashing . | . . . . Piercing . | . . . . Sneak Attacks . | . . . . Combat Hostiles . | . . . . Follow-up Attacks . | . . . . Damage Inflicted 3193 | . 376 1571 1246 Guns 1235 | . 376 379 480 Cannons 1954 | . . 1192 762 Explosions . | . . . . Melee . | . . . . Ramming 4 | . . . 4 Kinetic 2770 | . 376 1571 823 Thermal 419 | . . . 419 Explosive . | . . . . Electromagnetic . | . . . . Impact . | . . . . Slashing . | . . . . Piercing . | . . . . Highest Corruption . | . . . . Average Corruption . | . . . . Corruption Purged . | . . . . Corruption Blocked . | . . . . Overload Shots . | . . . . Overflow Damage 37 | . . 13 24 Projectiles 37 | . . 13 24 Explosions . | . . . . Melee . | . . . . Knockbacks 22 | . . 10 12 Impact . | . . . . Kinetic 21 | . . 9 12 Secondary 1 | . . 1 . Self-Inflicted Damage 2 | . . . 2 Shots . | . . . . Rammed 1 | . . . 1 Targets Rammed 1 | . . . 1 Kicked . | . . . . Crushed . | . . . . Highest Temperature 758 | . 20 7 758 Average Temperature 311 | . 7 4 340 Received Heat Transfer 1380 | . 195 231 954 Effects 42 | . . . 42 Shutdowns 6 | . . . 6 Energy Bleed 4 | . . . 4 Interference 6 | . . . 6 Matter Decay 4 | . . . 4 Short Circuit 3 | . . . 3 Damage (minor) 5 | . . . 5 Damage (major) 12 | . . . 12 Damage (core) 2 | . . . 2 Siege Activations . | . . . . Robots Corrupted . | . . . . Combat Hostiles . | . . . . Parts Fried . | . . . . Impact Corruptions . | . . . . Robots Melted 1 | . . . 1 Combat Hostiles 1 | . . . 1 Parts Melted 3 | . . . 3 Heat Transferred 999 | . . . 999 Parts Sabotaged . | . . . . Parts Stolen . | . . . . Parts Stripped . | . . . . Power Chain Reactions . | . . . . Alert | -11 -10 -9 -8 ------- Run | Yrd Mat Mat Mat Peak Influence 576 | . 145 576 336 Initial 172 | . . 61 172 Average 256 | . 98 323 267 Maximum Alert Level 2 | . . 2 1 Low Security (%) 40 | 100 100 30 21 Level 1 40 | . . 26 78 Level 2 19 | . . 43 . Level 3 . | . . . . Level 4 . | . . . . Level 5 . | . . . . High Security . | . . . . Max Security . | . . . . Squads Dispatched 1 | . . 1 . Investigation . | . . . . Extermination . | . . . . Reinforcement 1 | . . 1 . Assault . | . . . . Garrison . | . . . . Intercept . | . . . . Searches Triggered . | . . . . Construction Impeded . | . . . . Haulers Reinforced . | . . . . Active Scanning Responses . | . . . . Cargo Convoy Interrupts . | . . . . Stealth | -11 -10 -9 -8 --------- Run | Yrd Mat Mat Mat Distress Signals 7 | . . 5 2 Communications Jammed . | . . . . Distress Signals . | . . . . Times Spotted 66 | . 8 35 23 Peak Tracking Total 10 | . 4 7 10 Tactical Retreats 6 | . . 2 4 Traps | -11 -10 -9 -8 ------- Run | Yrd Mat Mat Mat Traps Triggered . | . . . . Indirectly . | . . . . Trap Hack Attempts . | . . . . Triggered . | . . . . Disarmed . | . . . . Reprogrammed . | . . . . Reused . | . . . . Traps Extracted . | . . . . Installed . | . . . . Triggered . | . . . . Machines | -11 -10 -9 -8 ---------- Run | Yrd Mat Mat Mat Machines Disabled 2 | . . 1 1 Max in Single Turn 1 | . . 1 1 Machines Repaired . | . . . . Machines Dismantled . | . . . . Machines Sabotaged . | . . . . Overloaded Fab Kills . | . . . . Hacking | -11 -10 -9 -8 --------- Run | Yrd Mat Mat Mat Machines Accessed 7 | . . 2 5 Terminals 7 | . . 2 5 Fabricators . | . . . . Repair Stations . | . . . . Recycling Units . | . . . . Scanalyzers . | . . . . Garrison Access . | . . . . Total Hacks 15 | . . 4 11 Successful 3 | . . 1 2 Failed 12 | . . 3 9 Catastrophic 2 | . . 1 1 Database Lockouts . | . . . . Manual 10 | . . 4 6 Terminals 15 | . . 4 11 Fabricators . | . . . . Repair Stations . | . . . . Recycling Units . | . . . . Scanalyzers . | . . . . Garrison Access . | . . . . Terminal Hacks 2 | . . 1 1 Unreport Threat 1 | . . 1 . Zone Layout 1 | . . . 1 Fabricator Hacks . | . . . . Repair Station Hacks . | . . . . Recycling Unit Hacks . | . . . . Scanalyzer . | . . . . Garrison Access Hacks . | . . . . Unauthorized Hacks 1 | . . . 1 Terminals 1 | . . . 1 Botnet 1 | . . . 1 Fabricators . | . . . . Repair Stations . | . . . . Recycling Units . | . . . . Scanalyzers . | . . . . Garrison Access . | . . . . Data Cores Recovered 1 | . . . 1 Used . | . . . . Hacking Detections 5 | . . 2 3 Full Trace Events 1 | . . . 1 Feedback Events . | . . . . Feedback Blocked . | . . . . Robot Schematics Acquired . | . . . . Robots Built . | . . . . Authchips . | . . . . Time . | . . . . Total Robot Build Rating . | . . . . Part Schematics Acquired . | . . . . Parts Built . | . . . . Authchips . | . . . . Time . | . . . . Total Part Build Rating . | . . . . Parts Repaired . | . . . . Time . | . . . . Parts Recycled . | . . . . Recycled Matter . | . . . . Retrieved Matter . | . . . . Retrieved Components . | . . . . Parts Scanalyzed . | . . . . Part Schematics Acquired . | . . . . Parts Damaged . | . . . . Bothacking | -11 -10 -9 -8 ------------ Run | Yrd Mat Mat Mat Used RIF Installer . | . . . . Robots Hacked . | . . . . Non-combat . | . . . . Combat . | . . . . Robot Hacks Applied . | . . . . Relay Couplers Released . | . . . . Fabnet Peak Effective % . | . . . . Robots Rewired . | . . . . Allies Hacked . | . . . . Hacks Repelled . | . . . . Allies | -11 -10 -9 -8 -------- Run | Yrd Mat Mat Mat Total Allies . | . . . . Largest Group . | . . . . Highest-Rated Group . | . . . . Highest-Rated Ally . | . . . . Total Orders . | . . . . Ally Attacks . | . . . . Total Damage . | . . . . Kills . | . . . . Allies Corrupted . | . . . . Allies Melted . | . . . . Intel | -11 -10 -9 -8 ------- Run | Yrd Mat Mat Mat Robot Analysis Total . | . . . . Derelict Logs Recovered . | . . . . Drone Launches . | . . . . Drone Recoveries . | . . . . Exploration | -11 -10 -9 -8 ------------- Run | Yrd Mat Mat Mat Turns Passed 1712 | 52 284 756 620 Spaces Moved 845 | 36 137 359 313 Core 4 | 4 . . . Treads 190 | . . 159 31 Legs 384 | 32 137 194 21 Wheels 261 | . . . 261 Hover . | . . . . Flight 6 | . . 6 . Fastest Speed 50 | 50 120 120 100 Average Speed 124 | 112 120 142 107 Slowest Speed 360 | 120 120 360 200 Overloaded Moves . | . . . . Propulsion Burnouts . | . . . . Robots Hopped . | . . . . Cave-ins Triggered . | . . . . Exploration Rate (%) 26 | 3 37 40 24 Regions Visited 3 Branch Regions . Pre-discovered Areas . | . . . . Known Exits Taken . | . . . . Unknown Exits Taken 3 | 1 1 1 . Scrap Searched . | . . . . Spaces Dug . | . . . . Terrain Destroyed 6 | . . 3 3 Melee . | . . . . Projectile 6 | . . 3 3 AOE . | . . . . Terrain Rammed . | . . . . Walls Destroyed . | . . . . Machines Disabled . | . . . . Actions | -11 -10 -9 -8 --------- Run | Yrd Mat Mat Mat Total 1258 | 44 205 484 525 Wait 157 | . 37 12 108 Move 842 | 35 136 358 313 Hop . | . . . . Pick Up 18 | 2 . 5 11 Fast Attach 29 | 6 2 10 11 Attach 14 | . . 4 10 Detach 8 | . 1 1 6 Swap 14 | 1 5 8 . Drop 39 | . . 19 20 Fire 136 | . 24 67 45 Melee . | . . . . Ram 1 | . . . 1 Kick . | . . . . Crush . | . . . . Escape Stasis . | . . . . Rewire . | . . . . Trap . | . . . . Miscellaneous . | . . . . Route ------- -11/Scrapyard -10/Materials -9/Materials -8/Materials History --------- Turn | Location | Event 5 | -11/Scrapyard | Discovered new exit (range 15) 53 | -11/Scrapyard | Entered Materials 323 | -10/Materials | Discovered new exit (range 4) 337 | -10/Materials | Entered another Materials area 337 | -9/Materials | Evolved 2 slots: Propulsion x2 423 | -9/Materials | Build established: Scavenger-Mutant 730 | -9/Materials | Destroyed 7 combat bots 754 | -9/Materials | Build established: Mutant 976 | -9/Materials | Discovered new exit (range 8) 1093 | -9/Materials | Entered another Materials area 1093 | -8/Materials | Evolved 2 slots: Utility x1, Weapon x1 1652 | -8/Materials | Lost 6 parts (1p1n2u2w) 1657 | -8/Materials | Core integrity fell below 50% 1669 | -8/Materials | Core integrity fell below 20% 1706 | -8/Materials | Lost 6 parts (1p1n1u3w) 1713 | -8/Materials | Destroyed by G-47 Trooper with Particle Gun Last Messages --------------- 01673_ Particle Gun destroyed. 01673_ Autogun destroyed. 01674_ Overheating: System interference. 01674_ Hvy. Particle Cannon temporarily disabled. 01675_ Ion Engine destroyed. 01675_ Imp. Field Recycling Unit destroyed. 01676_ U-05 Engineer builds a Wall. 01678_ M-13 Machinist repairs G-47 Trooper. 01680_ M-13 Machinist fits Backup Power I on G-47 Trooper. 01681_ Critical hit (Burn: +37). 01683_ Overheating: Matter decay (-8). 01683_ Acquired 12 matter. 01684_ Overheating: Energy bleed (-8). 01684_ Acquired 25 matter. 01685_ Overheating: Lrg. Storage Unit damaged (-173). 01685_ Acquired 3 matter. 01687_ Overheating: Lrg. Storage Unit damaged (-41). 01711_ Dropped Broken Arm. Huge Wheel. 01712_ Dropped Hvy. Particle Cannon. 01713_ Dropped Lrg. Storage Unit. Map ----- +----------------------------------------------------+ | """" ## """"""????????? ??????????????????????? | | "T"" ## """ "???????? #??????????????????????? | | ## ???????? #??????????????????????? | | ## ???????? #??????????????????????? | | #########???????? #??????????????????????? | | " %#??????????????? #??????????????????????? | | "" ##??????????????? #??????????????????????? | | """ #?????????????### ###????????????????????? | | #?????????????# #????????????????????? | | ####+##???########### #????????????????????? | | #### #????# # "??????????????? | | # #????# + ?????????????? | | # #????# #????????????????????? | | # #????# ####### #????????????????????? | | # #????# #?????#u #????????????????????? | | #### ###??# %%######## ##????????????????????? | | ?# % #### # # #?????????????????????? | | ## %% # #g #?????????????????????? | | T =% # # #?????????????????????? | | ## **= # g #?????????????????????? | | ?# /###/#### #g #?????????????????????? | | ?###+###[ % # # #?????????????????????? | | ### ## [[[ # # #?????????????????????? | | # ## [= # # w w#?????????????????????? | | # ## [= # % # ] #?????????????????????? | | # ## # # !@ #?????????????????????? | | # ## */ # =w#?????????????????????? | | # ######### # #?????????????????????? | | ??# #???????# # ?????????????????????? | | ??#####???????######## ????????????????????? | | ????????????????????? ???????????????????? | | ????????????????????## ??????????????????? | | ?????????????????????# ?????????????????? | | ?????????????????????#### #######????????????????? | | ????????????????????????? #??????????????????????? | | ????????????????????????? #??????????????????????? | | ###?????????????????????? #??????????????????????? | | #?????????????????????? #??????????????????????? | | #?????????????????????? ???????????????????????? | | #?????????????????????? ???????????????????????? | | #?????????????????????? ???????????????????????? | | #??????????????????????????????????????????????? | | "#??????????????????????????????????????????????? | | T#??????????????????????????????????????????????? | | "#??????????????????????????????????????????????? | | #??????????????????????????????????????????????? | | ###??????????????????????????????????????????????? | | ?????????????????????????????????????????????????? | | ?????????????????????????????????????????????????? | | ?????????????????????????????????????????????????? | +----------------------------------------------------+ Best States ------------- Heat Dissipation 45 Energy Generation 14 Energy Capacity 265 Matter Stores 300 Matter Capacity 300 Sight Range 16 Terrain Scan Density 10 Armor Coverage 225 Evasion (%) 55 Recoil Reduction 4 Defensive Hacking 10 Item Schematics ----------------- None Robot Schematics ------------------ None Fabricated ------------ Nothing Alien Tech Used ----------------- None Achievements -------------- None Challenges ------------ None Game ------ Seed SegregatorDecoderBarrier Manual? 0 Play Time 00:15:43 Cumulative 195.2 hours Start 2024.10.20 @ 19:27:08 End 2024.10.20 @ 19:43:21 Sessions 1 Manual Loads 0 Difficulty Rogue Special Mode None Game No. 383 Rogue 383 Adventurer 0 Explorer 0 Win Type - Total 0 Types 0/0/0/0/0/0/0/0/0 Lore% 36 Gallery% 63 Achievement% 48 Wizard Run 0 Options --------- Layout 0 ASCII 0 Keyboard 1 Movement Numpad Keybinds 0 Fullscreen 2 Font 18/X11 Map View 76x50 Zoom Use 0% Tactical HUD 1 Map Filters NONE Filters NONE Steam 1 RUN: 121b165d-1f6b-42ad-b2a1-2ddefad7d6f1